[Event "Late-Titled-Tuesday-Blitz-June-04-2024"]
[Site "Chess.com"]
[Date "2024.06.04"]
[Round "6"]
[White "lamomiajunior"]
[Black "Oleg_Papayan"]
[Result "1/2-1/2"]
[WhiteElo "2720"]
[BlackElo "2577"]
[TimeControl "180+1"]
[EndTime "15:07:51 PDT"]
[Termination "Game drawn by repetition"]

1. e4 {[%clk 0:03:00.9]} 1... d5 {[%clk 0:03:00.4]} 2. exd5 {[%clk 0:03:00.6]}
2... Qxd5 {[%clk 0:03:01.3]} 3. Nc3 {[%clk 0:03:00.5]} 3... Qd8 {[%clk
0:03:02.2]} 4. d4 {[%clk 0:02:59.3]} 4... c6 {[%clk 0:03:03.1]} 5. Nf3 {[%clk
0:02:58.3]} 5... Bf5 {[%clk 0:03:03.7]} 6. Ne5 {[%clk 0:02:55.6]} 6... Nd7
{[%clk 0:03:02.5]} 7. Nxd7 {[%clk 0:02:53.8]} 7... Qxd7 {[%clk 0:03:01.9]} 8.
Bc4 {[%clk 0:02:52.2]} 8... e6 {[%clk 0:03:00.3]} 9. O-O {[%clk 0:02:51.7]} 9...
Nf6 {[%clk 0:02:59.3]} 10. Be3 {[%clk 0:02:49.6]} 10... Be7 {[%clk 0:02:56.2]}
11. h3 {[%clk 0:02:47.1]} 11... O-O {[%clk 0:02:56]} 12. Re1 {[%clk 0:02:47.7]}
12... Rfd8 {[%clk 0:02:53.5]} 13. Qe2 {[%clk 0:02:45.3]} 13... Nd5 {[%clk
0:02:47.7]} 14. Nxd5 {[%clk 0:02:34]} 14... cxd5 {[%clk 0:02:48]} 15. Bb3 {[%clk
0:02:32.3]} 15... a5 {[%clk 0:02:22.8]} 16. a4 {[%clk 0:02:30.7]} 16... Qc6
{[%clk 0:02:18.1]} 17. c3 {[%clk 0:02:27.5]} 17... Qb6 {[%clk 0:02:17.1]} 18.
Ba2 {[%clk 0:02:19.6]} 18... Qa6 {[%clk 0:02:06.1]} 19. Qd2 {[%clk 0:02:00.7]}
19... Rdc8 {[%clk 0:01:56.1]} 20. Bb1 {[%clk 0:01:59.2]} 20... Bxb1 {[%clk
0:01:54.9]} 21. Rexb1 {[%clk 0:02:00.1]} 21... Rc6 {[%clk 0:01:47.9]} 22. b4
{[%clk 0:01:52.8]} 22... axb4 {[%clk 0:01:45.3]} 23. cxb4 {[%clk 0:01:53.7]}
23... Rc4 {[%clk 0:01:22.8]} 24. Rb2 {[%clk 0:01:21.2]} 24... Qb6 {[%clk
0:01:17.7]} 25. b5 {[%clk 0:01:15.6]} 25... Raxa4 {[%clk 0:01:15]} 26. Rab1
{[%clk 0:01:12]} 26... Bf6 {[%clk 0:01:03.2]} 27. Rc2 {[%clk 0:01:11.5]} 27...
h6 {[%clk 0:00:48.6]} 28. Rxc4 {[%clk 0:01:00.8]} 28... Rxc4 {[%clk 0:00:49.5]}
29. Qa2 {[%clk 0:00:51.2]} 29... Bxd4 {[%clk 0:00:45.6]} 30. Qa8+ {[%clk
0:00:50.9]} 30... Kh7 {[%clk 0:00:45.2]} 31. Bxd4 {[%clk 0:00:49.9]} 31... Rxd4
{[%clk 0:00:44.7]} 32. Qe8 {[%clk 0:00:49.6]} 32... Rf4 {[%clk 0:00:39.1]} 33.
Rf1 {[%clk 0:00:44.3]} 33... d4 {[%clk 0:00:37.2]} 34. Qd7 {[%clk 0:00:42.7]}
34... Rf5 {[%clk 0:00:35.5]} 35. Rb1 {[%clk 0:00:41.9]} 35... h5 {[%clk
0:00:23.7]} 36. f3 {[%clk 0:00:28.9]} 36... d3+ {[%clk 0:00:16.5]} 37. Kh1
{[%clk 0:00:29.4]} 37... Rd5 {[%clk 0:00:08.9]} 38. Qxf7 {[%clk 0:00:29.1]}
38... d2 {[%clk 0:00:09.6]} 39. Rd1 {[%clk 0:00:24]} 39... Qe3 {[%clk
0:00:07.4]} 40. Kh2 {[%clk 0:00:18.4]} 40... Qe5+ {[%clk 0:00:05.8]} 41. f4
{[%clk 0:00:18.4]} 41... Qe1 {[%clk 0:00:04.4]} 42. f5 {[%clk 0:00:18.9]} 42...
Qe5+ {[%clk 0:00:01.9]} 43. Kh1 {[%clk 0:00:18.3]} 43... Qxf5 {[%clk 0:00:02.6]}
44. Qxb7 {[%clk 0:00:14.9]} 44... Rxb5 {[%clk 0:00:03]} 45. Qd7 {[%clk
0:00:14.1]} 45... Rd5 {[%clk 0:00:03.4]} 46. Qa4 {[%clk 0:00:14.2]} 46... Qe5
{[%clk 0:00:02.9]} 47. Qc2+ {[%clk 0:00:13.9]} 47... g6 {[%clk 0:00:03.4]} 48.
Kg1 {[%clk 0:00:11.1]} 48... Qe1+ {[%clk 0:00:03.1]} 49. Kh2 {[%clk 0:00:11.6]}
49... Qe5+ {[%clk 0:00:02.6]} 50. Kg1 {[%clk 0:00:12.1]} 50... Qd4+ {[%clk
0:00:02.7]} 51. Kh1 {[%clk 0:00:12.4]} 51... Kh6 {[%clk 0:00:03.2]} 52. Kh2
{[%clk 0:00:12.2]} 52... e5 {[%clk 0:00:03.4]} 53. Qb3 {[%clk 0:00:10]} 53...
Qf4+ {[%clk 0:00:03.4]} 54. Kh1 {[%clk 0:00:09.9]} 54... Qd4 {[%clk 0:00:03.3]}
55. Qf3 {[%clk 0:00:09.4]} 55... h4 {[%clk 0:00:02.6]} 56. Qf8+ {[%clk
0:00:09.5]} 56... Kh5 {[%clk 0:00:02.7]} 57. Qh8+ {[%clk 0:00:09]} 57... Kg5
{[%clk 0:00:03.4]} 58. Qf8 {[%clk 0:00:06.3]} 58... Qf4 {[%clk 0:00:02.7]} 59.
Qa3 {[%clk 0:00:04.4]} 59... e4 {[%clk 0:00:02.3]} 60. Qe7+ {[%clk 0:00:04]}
60... Kh5 {[%clk 0:00:01.3]} 61. Qh7+ {[%clk 0:00:04.4]} 61... Kg5 {[%clk
0:00:01.7]} 62. Qe7+ {[%clk 0:00:05.1]} 62... Qf6 {[%clk 0:00:02.2]} 63. Qb7
{[%clk 0:00:04.8]} 63... Rd4 {[%clk 0:00:02]} 64. Qb5+ {[%clk 0:00:04.8]} 64...
Kh6 {[%clk 0:00:02.2]} 65. Qe2 {[%clk 0:00:05.7]} 65... g5 {[%clk 0:00:02]} 66.
Qe3 {[%clk 0:00:04.8]} 66... Qe5 {[%clk 0:00:01.7]} 67. Rxd2 {[%clk 0:00:04.1]}
67... Rxd2 {[%clk 0:00:01.9]} 68. Qxd2 {[%clk 0:00:05]} 68... Qa1+ {[%clk
0:00:02.2]} 69. Kh2 {[%clk 0:00:04.9]} 69... Qe5+ {[%clk 0:00:03.1]} 70. Kg1
{[%clk 0:00:05.5]} 70... e3 {[%clk 0:00:03.7]} 71. Qe2 {[%clk 0:00:05.4]} 71...
Qa1+ {[%clk 0:00:03.5]} 72. Kh2 {[%clk 0:00:06]} 72... Qe5+ {[%clk 0:00:04.1]}
73. Kg1 {[%clk 0:00:06.7]} 73... Qf4 {[%clk 0:00:04.7]} 74. Kh1 {[%clk
0:00:06.3]} 74... Qf2 {[%clk 0:00:04.4]} 75. Qa6+ {[%clk 0:00:06.9]} 75... Kh5
{[%clk 0:00:04.8]} 76. Qe6 {[%clk 0:00:05.9]} 76... Qf1+ {[%clk 0:00:04.1]} 77.
Kh2 {[%clk 0:00:06]} 77... Qf4+ {[%clk 0:00:04.5]} 78. Kh1 {[%clk 0:00:06.6]}
78... Qf1+ {[%clk 0:00:04.8]} 79. Kh2 {[%clk 0:00:07.2]} 79... e2 {[%clk
0:00:05.7]} 80. Qe8+ {[%clk 0:00:07.4]} 80... Kh6 {[%clk 0:00:05.7]} 81. Qe6+
{[%clk 0:00:08]} 81... Kg7 {[%clk 0:00:05.3]} 82. Qe7+ {[%clk 0:00:08.5]} 82...
Kg6 {[%clk 0:00:05.2]} 83. Qe6+ {[%clk 0:00:09]} 83... Kh7 {[%clk 0:00:05.4]}
84. Qe7+ {[%clk 0:00:08.9]} 84... Kg8 {[%clk 0:00:03.1]} 85. Qe8+ {[%clk
0:00:07.1]} 85... Kg7 {[%clk 0:00:03.5]} 86. Qe7+ {[%clk 0:00:07]} 86... Kh6
{[%clk 0:00:03.8]} 87. Qe6+ {[%clk 0:00:07]} 87... Kh5 {[%clk 0:00:04.2]} 88.
Qg4+ {[%clk 0:00:06.5]} 88... Kg6 {[%clk 0:00:04.4]} 89. Qe6+ {[%clk 0:00:07.2]}
89... Kg7 {[%clk 0:00:04.9]} 90. Qe7+ {[%clk 0:00:07.6]} 1/2-1/2

[Event "Late-Titled-Tuesday-Blitz-June-04-2024"]
[Site "Chess.com"]
[Date "2024.06.04"]
[Round "6"]
[White "TigrVShlyape"]
[Black "rezamahdavi2008"]
[Result "0-1"]
[WhiteElo "2914"]
[BlackElo "2952"]
[TimeControl "180+1"]
[EndTime "15:08:16 PDT"]
[Termination "rezamahdavi2008 won on time"]

1. d4 {[%clk 0:03:00.9]} 1... Nf6 {[%clk 0:02:55]} 2. Bf4 {[%clk 0:03:00.9]}
2... e6 {[%clk 0:02:51.5]} 3. e3 {[%clk 0:03:01]} 3... b6 {[%clk 0:02:51.7]} 4.
Nf3 {[%clk 0:02:59.6]} 4... Bb7 {[%clk 0:02:51.7]} 5. Nbd2 {[%clk 0:02:59.4]}
5... Nh5 {[%clk 0:02:48.7]} 6. Bg5 {[%clk 0:02:54.9]} 6... Be7 {[%clk
0:02:49.2]} 7. Bxe7 {[%clk 0:02:53.1]} 7... Qxe7 {[%clk 0:02:50.1]} 8. a4 {[%clk
0:02:51.1]} 8... a5 {[%clk 0:02:37.8]} 9. Bb5 {[%clk 0:02:50.1]} 9... O-O {[%clk
0:02:37.8]} 10. O-O {[%clk 0:02:49.1]} 10... f5 {[%clk 0:02:38.1]} 11. Re1
{[%clk 0:02:41.9]} 11... d6 {[%clk 0:02:35.8]} 12. c3 {[%clk 0:02:04.4]} 12...
Nd7 {[%clk 0:02:34.5]} 13. e4 {[%clk 0:01:51]} 13... fxe4 {[%clk 0:02:25.7]} 14.
Nxe4 {[%clk 0:01:50.6]} 14... Nf4 {[%clk 0:02:25.5]} 15. Bf1 {[%clk 0:01:41.2]}
15... Nf6 {[%clk 0:02:15.8]} 16. Ned2 {[%clk 0:01:26.9]} 16... Ng4 {[%clk
0:01:54.6]} 17. g3 {[%clk 0:01:20.7]} 17... Ng6 {[%clk 0:01:54.3]} 18. h3 {[%clk
0:01:12.2]} 18... Nh6 {[%clk 0:01:54]} 19. Bg2 {[%clk 0:01:10.5]} 19... Rf6
{[%clk 0:01:50.7]} 20. Ng5 {[%clk 0:01:05.6]} 20... Bxg2 {[%clk 0:01:49.6]} 21.
Kxg2 {[%clk 0:01:05.9]} 21... Raf8 {[%clk 0:01:47.4]} 22. Re2 {[%clk 0:00:43.1]}
22... Nf7 {[%clk 0:01:20.4]} 23. Ngf3 {[%clk 0:00:36.6]} 23... Rf5 {[%clk
0:01:15.4]} 24. Qb3 {[%clk 0:00:35.7]} 24... Nd8 {[%clk 0:01:07.7]} 25. Rf1
{[%clk 0:00:29.3]} 25... Qf7 {[%clk 0:01:07.3]} 26. Nh2 {[%clk 0:00:27.2]} 26...
Kh8 {[%clk 0:01:06.9]} 27. Kh1 {[%clk 0:00:26.4]} 27... Qd7 {[%clk 0:01:05.1]}
28. Qc4 {[%clk 0:00:25.1]} 28... e5 {[%clk 0:01:05]} 29. d5 {[%clk 0:00:23.5]}
29... Nf7 {[%clk 0:01:03.6]} 30. Ne4 {[%clk 0:00:22.8]} 30... Ng5 {[%clk
0:01:00.4]} 31. Nxg5 {[%clk 0:00:20.8]} 31... Rxg5 {[%clk 0:01:01.3]} 32. h4
{[%clk 0:00:20.8]} 32... Rgf5 {[%clk 0:01:01.6]} 33. b3 {[%clk 0:00:19.2]} 33...
Ne7 {[%clk 0:01:01.9]} 34. Qe4 {[%clk 0:00:18.9]} 34... Qe8 {[%clk 0:01:01]} 35.
c4 {[%clk 0:00:18]} 35... Qg6 {[%clk 0:00:59.2]} 36. Qg4 {[%clk 0:00:17.6]}
36... Qf7 {[%clk 0:00:56.1]} 37. Kg2 {[%clk 0:00:17.5]} 37... Ng8 {[%clk
0:00:56.3]} 38. f3 {[%clk 0:00:15.6]} 38... g6 {[%clk 0:00:53.5]} 39. Qe4 {[%clk
0:00:15.4]} 39... Nf6 {[%clk 0:00:53.8]} 40. Qe3 {[%clk 0:00:15.3]} 40... Qg7
{[%clk 0:00:50.2]} 41. Ref2 {[%clk 0:00:13.1]} 41... Nh5 {[%clk 0:00:49.7]} 42.
Ng4 {[%clk 0:00:12.1]} 42... Qd7 {[%clk 0:00:46.3]} 43. Nh6 {[%clk 0:00:11.5]}
43... R5f6 {[%clk 0:00:46.6]} 44. Ng4 {[%clk 0:00:11.9]} 44... R6f7 {[%clk
0:00:46.2]} 45. Nh6 {[%clk 0:00:12.3]} 45... Rf6 {[%clk 0:00:38]} 46. Ng4 {[%clk
0:00:12.6]} 46... R6f7 {[%clk 0:00:31.7]} 47. Nh6 {[%clk 0:00:13]} 47... Re7
{[%clk 0:00:32.4]} 48. Ng4 {[%clk 0:00:12.8]} 48... Qf5 {[%clk 0:00:30.4]} 49.
Qe4 {[%clk 0:00:12.7]} 49... Kg7 {[%clk 0:00:24.3]} 50. Ne3 {[%clk 0:00:12.7]}
50... Qd7 {[%clk 0:00:18.2]} 51. Ng4 {[%clk 0:00:12.9]} 51... Ref7 {[%clk
0:00:18.3]} 52. Kh2 {[%clk 0:00:11.8]} 52... Nf6 {[%clk 0:00:17.3]} 53. Nxf6
{[%clk 0:00:11.6]} 53... Rxf6 {[%clk 0:00:18.2]} 54. Kg2 {[%clk 0:00:12.1]}
54... Qf5 {[%clk 0:00:17.4]} 55. Qxf5 {[%clk 0:00:11.9]} 55... Rxf5 {[%clk
0:00:18.3]} 56. Re2 {[%clk 0:00:11.4]} 56... h6 {[%clk 0:00:18.9]} 57. Re4
{[%clk 0:00:11.8]} 57... g5 {[%clk 0:00:19.4]} 58. h5 {[%clk 0:00:11.8]} 58...
R5f6 {[%clk 0:00:18.4]} 59. Rf2 {[%clk 0:00:12.2]} 59... Kh7 {[%clk 0:00:18.6]}
60. Rf1 {[%clk 0:00:11.9]} 60... Rg8 {[%clk 0:00:19.2]} 61. g4 {[%clk
0:00:11.8]} 61... Rgf8 {[%clk 0:00:19.5]} 62. Rf2 {[%clk 0:00:12]} 62... Rf4
{[%clk 0:00:20.2]} 63. Kg3 {[%clk 0:00:10.8]} 63... Rxe4 {[%clk 0:00:15.1]} 64.
fxe4 {[%clk 0:00:10.7]} 64... Rf4 {[%clk 0:00:15.9]} 65. Re2 {[%clk 0:00:10.7]}
65... Kg7 {[%clk 0:00:15.8]} 66. Re3 {[%clk 0:00:11]} 66... Rf1 {[%clk
0:00:14.8]} 67. Kg2 {[%clk 0:00:10.1]} 67... Rb1 {[%clk 0:00:14.3]} 68. Kg3
{[%clk 0:00:10.3]} 68... Rb2 {[%clk 0:00:14.6]} 69. Kf3 {[%clk 0:00:10.5]} 69...
Rc2 {[%clk 0:00:13.3]} 70. Kg3 {[%clk 0:00:10.7]} 70... Kf6 {[%clk 0:00:13.9]}
71. Rf3+ {[%clk 0:00:10.5]} 71... Ke7 {[%clk 0:00:14.2]} 72. Re3 {[%clk
0:00:11.1]} 72... Rd2 {[%clk 0:00:13.9]} 73. Kf3 {[%clk 0:00:11.4]} 73... Kd7
{[%clk 0:00:14.2]} 74. Kg3 {[%clk 0:00:11.7]} 74... c6 {[%clk 0:00:14.8]} 75.
Rf3 {[%clk 0:00:10.8]} 75... cxd5 {[%clk 0:00:15.4]} 76. exd5 {[%clk 0:00:10.9]}
76... Ke7 {[%clk 0:00:15.6]} 77. Re3 {[%clk 0:00:11]} 77... Rd1 {[%clk
0:00:14.9]} 78. Rf3 {[%clk 0:00:10.7]} 78... Re1 {[%clk 0:00:14.4]} 79. Kf2
{[%clk 0:00:10.3]} 79... Re4 {[%clk 0:00:13.6]} 80. Kg3 {[%clk 0:00:10.6]} 80...
Rf4 {[%clk 0:00:13.5]} 81. Rxf4 {[%clk 0:00:08.9]} 81... gxf4+ {[%clk 0:00:13]}
82. Kh4 {[%clk 0:00:07.3]} 82... Kf6 {[%clk 0:00:13.5]} 83. Kh3 {[%clk 0:00:02]}
83... Kg5 {[%clk 0:00:14.1]} 84. b4 {[%clk 0:00:01.9]} 84... axb4 {[%clk
0:00:14.3]} 85. c5 {[%clk 0:00:01.1]} 85... dxc5 {[%clk 0:00:15.2]} 86. d6
{[%clk 0:00:01.5]} 86... Kf6 {[%clk 0:00:13.9]} 87. g5+ {[%clk 0:00:02]} 87...
Ke6 {[%clk 0:00:10.4]} 88. gxh6 {[%clk 0:00:02]} 88... b3 {[%clk 0:00:11]} 89.
h7 {[%clk 0:00:02.2]} 89... b2 {[%clk 0:00:11.8]} 90. h8=Q {[%clk 0:00:02.2]}
90... b1=Q {[%clk 0:00:12.5]} 91. Qg8+ {[%clk 0:00:01.7]} 91... Kxd6 {[%clk
0:00:12.6]} 92. Qd8+ {[%clk 0:00:02.3]} 92... Ke6 {[%clk 0:00:12.9]} 93. Qg8+
{[%clk 0:00:02.5]} 93... Kd6 {[%clk 0:00:08.6]} 94. Qd8+ {[%clk 0:00:02.5]}
94... Kc6 {[%clk 0:00:09.2]} 95. Qa8+ {[%clk 0:00:02.1]} 95... Kc7 {[%clk
0:00:09.9]} 96. Qa7+ {[%clk 0:00:02.3]} 96... Kd6 {[%clk 0:00:10]} 97. Qb8+
{[%clk 0:00:02.5]} 97... Kd5 {[%clk 0:00:10.6]} 98. Qd8+ {[%clk 0:00:01.2]}
98... Ke4 {[%clk 0:00:10.1]} 0-1

[Event "Late-Titled-Tuesday-Blitz-June-04-2024"]
[Site "Chess.com"]
[Date "2024.06.04"]
[Round "7"]
[White "carloseduar100"]
[Black "scrambleyourbrain"]
[Result "0-1"]
[WhiteElo "2254"]
[BlackElo "2381"]
[TimeControl "180+1"]
[EndTime "15:10:17 PDT"]
[Termination "scrambleyourbrain won by resignation"]

1. g3 {[%clk 0:02:40.7]} 1... Nf6 {[%clk 0:02:58.6]} 2. Bg2 {[%clk 0:02:41.6]}
2... g6 {[%clk 0:02:58.8]} 3. Nf3 {[%clk 0:02:42.2]} 3... Bg7 {[%clk 0:02:59.3]}
4. O-O {[%clk 0:02:43.1]} 4... O-O {[%clk 0:02:59.6]} 5. d4 {[%clk 0:02:44]}
5... d5 {[%clk 0:03:00.2]} 6. c3 {[%clk 0:02:44.9]} 6... c5 {[%clk 0:03:00.6]}
7. Nbd2 {[%clk 0:02:45.8]} 7... cxd4 {[%clk 0:03:00.9]} 8. cxd4 {[%clk
0:02:46.3]} 8... Nc6 {[%clk 0:03:01.4]} 9. Re1 {[%clk 0:02:46.9]} 9... Bf5
{[%clk 0:03:01.5]} 10. a3 {[%clk 0:02:47.4]} 10... Rc8 {[%clk 0:03:01]} 11. b4
{[%clk 0:02:47.2]} 11... a6 {[%clk 0:03:01.1]} 12. Nh4 {[%clk 0:02:47.1]} 12...
Bg4 {[%clk 0:02:58.2]} 13. Qb3 {[%clk 0:02:47.5]} 13... Nxd4 {[%clk 0:02:51.8]}
14. Qd3 {[%clk 0:02:44.6]} 14... Nc2 {[%clk 0:02:51.5]} 15. Bb2 {[%clk
0:02:43.6]} 15... Nxe1 {[%clk 0:02:50.7]} 16. Rxe1 {[%clk 0:02:43.7]} 16... Be6
{[%clk 0:02:42.7]} 17. Nhf3 {[%clk 0:02:40.1]} 17... Bf5 {[%clk 0:02:42.2]} 18.
Qb3 {[%clk 0:02:36.5]} 18... Bc2 {[%clk 0:02:38.3]} 19. Qe3 {[%clk 0:02:35.6]}
19... Ng4 {[%clk 0:02:37.7]} 20. Qa7 {[%clk 0:02:35.7]} 20... Bxb2 {[%clk
0:02:37.1]} 0-1

[Event "Late-Titled-Tuesday-Blitz-June-04-2024"]
[Site "Chess.com"]
[Date "2024.06.04"]
[Round "7"]
[White "Heydarli77"]
[Black "stolencandy13"]
[Result "0-1"]
[WhiteElo "2457"]
[BlackElo "2628"]
[TimeControl "180+1"]
[EndTime "15:11:12 PDT"]
[Termination "stolencandy13 won by resignation"]

1. d4 {[%clk 0:02:58.8]} 1... Nf6 {[%clk 0:03:00]} 2. c4 {[%clk 0:02:58.1]} 2...
e5 {[%clk 0:02:59]} 3. dxe5 {[%clk 0:02:56.2]} 3... Ng4 {[%clk 0:02:59.5]} 4.
Nf3 {[%clk 0:02:56.1]} 4... Bc5 {[%clk 0:02:59.3]} 5. e3 {[%clk 0:02:55.9]} 5...
Nc6 {[%clk 0:02:59.9]} 6. Be2 {[%clk 0:02:55]} 6... O-O {[%clk 0:02:59]} 7. Nbd2
{[%clk 0:02:54.3]} 7... Re8 {[%clk 0:02:54.8]} 8. O-O {[%clk 0:02:53.1]} 8... a5
{[%clk 0:02:53.9]} 9. b3 {[%clk 0:02:52.3]} 9... Ngxe5 {[%clk 0:02:53.1]} 10.
Nxe5 {[%clk 0:02:50.6]} 10... Nxe5 {[%clk 0:02:53.3]} 11. Bb2 {[%clk 0:02:50.2]}
11... Ra6 {[%clk 0:02:52.2]} 12. Nf3 {[%clk 0:02:47.5]} 12... Nxf3+ {[%clk
0:02:49]} 13. Bxf3 {[%clk 0:02:47.1]} 13... Rh6 {[%clk 0:02:48.2]} 14. g3 {[%clk
0:02:41]} 14... d6 {[%clk 0:02:44.9]} 15. Qd5 {[%clk 0:02:36.6]} 15... c6 {[%clk
0:02:11.2]} 16. Qd3 {[%clk 0:02:34.8]} 16... Qg5 {[%clk 0:02:06]} 17. Rad1
{[%clk 0:02:27.3]} 17... Bg4 {[%clk 0:02:03.5]} 18. e4 {[%clk 0:02:21.7]} 18...
Qh5 {[%clk 0:01:57.1]} 0-1

[Event "Late-Titled-Tuesday-Blitz-June-04-2024"]
[Site "Chess.com"]
[Date "2024.06.04"]
[Round "7"]
[White "Laico"]
[Black "margarita_2703"]
[Result "1-0"]
[WhiteElo "2408"]
[BlackElo "2280"]
[TimeControl "180+1"]
[EndTime "15:11:18 PDT"]
[Termination "Laico won by resignation"]

1. e4 {[%clk 0:03:00.9]} 1... e5 {[%clk 0:02:49.5]} 2. Nc3 {[%clk 0:02:59.5]}
2... Nf6 {[%clk 0:02:47.7]} 3. f4 {[%clk 0:02:55.8]} 3... d5 {[%clk 0:02:43]} 4.
fxe5 {[%clk 0:02:54.3]} 4... Nxe4 {[%clk 0:02:15.5]} 5. Qf3 {[%clk 0:02:54.2]}
5... f5 {[%clk 0:02:14.1]} 6. d3 {[%clk 0:02:53.3]} 6... Bb4 {[%clk 0:02:12]} 7.
dxe4 {[%clk 0:02:47]} 7... fxe4 {[%clk 0:02:12.3]} 8. Qh5+ {[%clk 0:02:22.8]}
8... g6 {[%clk 0:02:11.7]} 9. Qg5 {[%clk 0:02:16]} 9... d4 {[%clk 0:02:05.9]}
10. Qxd8+ {[%clk 0:02:12.9]} 10... Kxd8 {[%clk 0:02:06.8]} 11. Bg5+ {[%clk
0:02:08.5]} 11... Ke8 {[%clk 0:02:06.7]} 12. O-O-O {[%clk 0:02:07.7]} 12... Bg4
{[%clk 0:01:54.6]} 13. Rxd4 {[%clk 0:02:06.9]} 13... Nc6 {[%clk 0:01:51.2]} 14.
Bb5 {[%clk 0:02:07]} 1-0

[Event "Late-Titled-Tuesday-Blitz-June-04-2024"]
[Site "Chess.com"]
[Date "2024.06.04"]
[Round "7"]
[White "ChessLebaneseSalah"]
[Black "RealPerangel"]
[Result "0-1"]
[WhiteElo "2586"]
[BlackElo "2750"]
[TimeControl "180+1"]
[EndTime "15:12:40 PDT"]
[Termination "RealPerangel won by resignation"]

1. e4 {[%clk 0:02:50.4]} 1... d5 {[%clk 0:03:00]} 2. exd5 {[%clk 0:02:51.3]}
2... Qxd5 {[%clk 0:03:00.3]} 3. Nf3 {[%clk 0:02:50.8]} 3... Bg4 {[%clk
0:02:59.9]} 4. Be2 {[%clk 0:02:50.3]} 4... Nc6 {[%clk 0:03:00.3]} 5. h3 {[%clk
0:02:46.4]} 5... Bxf3 {[%clk 0:03:00.3]} 6. Bxf3 {[%clk 0:02:46.6]} 6... Qe6+
{[%clk 0:03:01]} 7. Qe2 {[%clk 0:02:47]} 7... Qxe2+ {[%clk 0:03:01.1]} 8. Bxe2
{[%clk 0:02:46.9]} 8... O-O-O {[%clk 0:03:01.8]} 9. d3 {[%clk 0:02:46.5]} 9...
e5 {[%clk 0:03:02.2]} 10. c3 {[%clk 0:02:46.9]} 10... f5 {[%clk 0:03:02.4]} 11.
Nd2 {[%clk 0:02:45.2]} 11... Nf6 {[%clk 0:03:02.5]} 12. b4 {[%clk 0:02:40.5]}
12... Nd5 {[%clk 0:03:01.8]} 13. Nb1 {[%clk 0:02:28.4]} 13... Be7 {[%clk
0:02:54.3]} 14. a3 {[%clk 0:02:27.8]} 14... Bf6 {[%clk 0:02:54]} 15. O-O {[%clk
0:02:23.5]} 15... h5 {[%clk 0:02:51.9]} 16. Rd1 {[%clk 0:02:18.8]} 16... g5
{[%clk 0:02:51.3]} 17. Bf1 {[%clk 0:02:17.5]} 17... g4 {[%clk 0:02:50.7]} 18.
Kh1 {[%clk 0:02:16.6]} 18... Rhg8 {[%clk 0:02:41.7]} 19. Bb2 {[%clk 0:02:10.6]}
19... gxh3 {[%clk 0:02:22.1]} 20. g3 {[%clk 0:02:07.3]} 20... h4 {[%clk
0:02:21.9]} 21. gxh4 {[%clk 0:02:03.7]} 21... Nf4 {[%clk 0:02:21.5]} 22. b5
{[%clk 0:01:55.2]} 22... Ne7 {[%clk 0:02:19.9]} 23. Bc1 {[%clk 0:01:49.6]} 23...
Neg6 {[%clk 0:02:04]} 24. h5 {[%clk 0:01:49]} 24... Nxh5 {[%clk 0:02:01.5]} 25.
Bxh3 {[%clk 0:01:47.6]} 25... Ne7 {[%clk 0:02:01.7]} 26. Be3 {[%clk 0:01:36]}
26... b6 {[%clk 0:01:57.8]} 27. a4 {[%clk 0:01:35.6]} 27... Bg5 {[%clk 0:01:57]}
28. Bxg5 {[%clk 0:01:28.5]} 28... Rxg5 {[%clk 0:01:56.6]} 29. a5 {[%clk
0:01:28.1]} 29... Nf4 {[%clk 0:01:55.8]} 30. axb6 {[%clk 0:01:16.9]} 30... Rh8
{[%clk 0:01:55.7]} 0-1

[Event "Late-Titled-Tuesday-Blitz-June-04-2024"]
[Site "Chess.com"]
[Date "2024.06.04"]
[Round "7"]
[White "The_Straightforward_Rook"]
[Black "YellowJacek"]
[Result "1-0"]
[WhiteElo "2539"]
[BlackElo "2384"]
[TimeControl "180+1"]
[EndTime "15:12:40 PDT"]
[Termination "The_Straightforward_Rook won by resignation"]

1. d4 {[%clk 0:02:57.6]} 1... Nf6 {[%clk 0:02:58.3]} 2. c4 {[%clk 0:02:57]} 2...
g6 {[%clk 0:02:58.4]} 3. Nc3 {[%clk 0:02:55.7]} 3... d5 {[%clk 0:02:58.3]} 4.
cxd5 {[%clk 0:02:54.8]} 4... Nxd5 {[%clk 0:02:59.2]} 5. e4 {[%clk 0:02:55]} 5...
Nxc3 {[%clk 0:02:59.1]} 6. bxc3 {[%clk 0:02:55.6]} 6... Bg7 {[%clk 0:02:59.6]}
7. Nf3 {[%clk 0:02:53.4]} 7... c5 {[%clk 0:02:57.9]} 8. Bb5+ {[%clk 0:02:53.3]}
8... Nc6 {[%clk 0:02:56]} 9. O-O {[%clk 0:02:53.4]} 9... O-O {[%clk 0:02:45.2]}
10. Be3 {[%clk 0:02:40.9]} 10... Bg4 {[%clk 0:02:36.8]} 11. Bxc6 {[%clk
0:02:32.2]} 11... bxc6 {[%clk 0:02:35.5]} 12. h3 {[%clk 0:02:31.6]} 12... Bxf3
{[%clk 0:02:34.3]} 13. Qxf3 {[%clk 0:02:30.3]} 13... cxd4 {[%clk 0:02:35.2]} 14.
cxd4 {[%clk 0:02:29.6]} 14... Bxd4 {[%clk 0:02:32.3]} 15. Rfd1 {[%clk
0:02:19.3]} 15... Bxa1 {[%clk 0:02:22.5]} 16. Rxd8 {[%clk 0:02:16.7]} 16...
Rfxd8 {[%clk 0:02:23.4]} 17. h4 {[%clk 0:02:05.9]} 17... Bd4 {[%clk 0:02:21.7]}
18. h5 {[%clk 0:02:02.9]} 18... Bxe3 {[%clk 0:02:20.7]} 19. Qxe3 {[%clk
0:02:03.8]} 19... Rac8 {[%clk 0:02:15.4]} 20. Qc5 {[%clk 0:02:02]} 20... Rd7
{[%clk 0:02:00.1]} 21. h6 {[%clk 0:02:00.4]} 21... f6 {[%clk 0:01:56.3]} 22. g4
{[%clk 0:01:53.9]} 22... g5 {[%clk 0:01:55.9]} 23. Qc4+ {[%clk 0:01:49.2]} 23...
Kf8 {[%clk 0:01:55.3]} 24. Qc5 {[%clk 0:01:40.2]} 24... Rb7 {[%clk 0:01:50.3]}
25. Qf5 {[%clk 0:01:37]} 25... Rcc7 {[%clk 0:01:40.8]} 26. Qxh7 {[%clk
0:01:36.4]} 26... Ke8 {[%clk 0:01:23.9]} 27. Qg8+ {[%clk 0:01:34.4]} 1-0